bitfinex-derivatives/quotes_BTCF0:USTF0_20251204
["timestamp","ask_amount","ask_price","bid_price","bid_amount"]
[1764881989657,0.05824663,92561.0,92560.0,0.0108007]
[1764881989856,0.05966,92569.0,92568.0,0.0721798]
[1764881991952,0.05824663,92571.0,92568.0,0.0721798]
[1764881992155,0.03023,92572.0,92571.0,0.0721794]
[1764881992352,0.08847663,92573.0,92572.0,0.06138]
[1764881992549,0.00016212,92575.0,92568.0,0.0107997]
[1764881992550,0.01335,92574.0,92568.0,0.0107997]
[1764881992856,0.05966,92566.0,92565.0,0.0108001]
[1764881993048,0.05966,92566.0,92565.0,0.0905501]
[1764881994463,0.00016212,92575.0,92565.0,0.0905501]
[1764881994464,0.05824734,92571.0,92570.0,0.06138]
[1764881994655,0.05966,92572.0,92571.0,0.0721794]
[1764881995159,0.05966,92572.0,92571.0,0.0107994]
[1764881995362,0.05966,92572.0,92571.0,0.0721794]
[1764881996550,0.03023,92572.0,92571.0,0.0721794]
[1764881996753,0.00016212,92575.0,92574.0,0.0905491]
[1764881997059,0.05982212,92575.0,92574.0,0.09296912]
[1764881997260,0.00016212,92575.0,92574.0,0.09296912]
[1764881997854,0.05982212,92575.0,92574.0,0.09296912]
[1764881998254,0.03039212,92575.0,92574.0,0.09296912]
[1764881998462,0.05982212,92575.0,92574.0,0.09296912]
[1764881999254,0.00016212,92575.0,92574.0,0.09296912]
[1764881999451,0.05982212,92575.0,92574.0,0.09296912]
[1764881999661,0.05982212,92575.0,92574.0,0.0905491]
[1764881999864,0.05982212,92575.0,92553.0,0.0108014]
[1764881999865,0.03023,92566.0,92556.0,0.00016212]
[1764882000066,0.05966,92539.0,92538.0,0.0905533]
[1764882000568,0.05966,92546.0,92545.0,0.0721825]
[1764882000755,0.05966,92546.0,92545.0,0.07460252]
[1764882000960,0.08547703,92554.0,92551.0,0.06138]
[1764882001265,0.08547703,92554.0,92553.0,0.06380002]
[1764882001562,0.11570703,92554.0,92553.0,0.06380002]
[1764882001771,0.36375821,92561.0,92560.0,0.02966]
[1764882001959,0.36375821,92561.0,92560.0,0.0108007]
[1764882001960,0.05966,92561.0,92560.0,0.0108007]
[1764882002156,0.11792027,92561.0,92560.0,0.0108007]
[1764882002966,0.11792027,92561.0,92551.0,0.001]
[1764882003168,0.05966,92552.0,92551.0,0.001]
[1764882003376,0.11792027,92552.0,92551.0,0.001]
[1764882003671,0.05966,92546.0,92545.0,0.0108024]
[1764882006168,0.05966,92546.0,92545.0,0.0148024]
[1764882006372,0.05966,92546.0,92545.0,0.0158024]
[1764882008075,0.05966,92546.0,92545.0,0.005]
[1764882008868,0.05966,92546.0,92545.0,0.0158025]
[1764882009269,0.05966,92546.0,92545.0,0.005]
[1764882009971,0.56398,92546.0,92545.0,0.005]
[1764882011464,0.05966,92546.0,92545.0,0.06429]
[1764882011678,0.5639,92546.0,92545.0,0.005]
[1764882012070,0.5639,92546.0,92545.0,0.004]
[1764882012272,0.0601,92544.0,92537.0,0.0108033]
[1764882012478,0.11823031,92544.0,92539.0,0.0108031]
[1764882012871,0.11823031,92544.0,92536.0,0.0108034]
[1764882013066,0.0601,92544.0,92529.0,0.01637]
[1764882013264,0.11822691,92544.0,92541.0,0.0108028]
[1764882013465,0.11822691,92544.0,92538.0,0.0108032]
[1764882013975,0.0108042,92531.0,92528.0,0.0108044]
[1764882014185,0.0709046,92527.0,92495.0,0.0108082]
[1764882014476,0.0601,92506.0,92505.0,0.070097]
[1764882015386,0.03172,92506.0,92505.0,0.070097]
[1764882016075,0.03172,92506.0,92505.0,0.077097]
[1764882016382,0.03172,92506.0,92505.0,0.070097]
[1764882016566,0.03172,92506.0,92505.0,0.071097]
[1764882016967,0.03172,92506.0,92505.0,0.070097]
[1764882017181,0.03172,92506.0,92505.0,0.071097]
[1764882018483,0.0601,92506.0,92505.0,0.070097]
[1764882018781,0.33536794,92512.0,92511.0,0.0864664]
[1764882018982,0.0601,92512.0,92511.0,0.0864664]
[1764882019371,0.0709063,92512.0,92511.0,0.07566]
[1764882019575,0.0601,92512.0,92511.0,0.0864664]
[1764882020278,0.0601,92497.0,92496.0,0.04174032]
[1764882020478,0.0601,92497.0,92496.0,0.00016212]
[1764882022084,0.27526794,92510.0,92503.0,0.0108072]
[1764882022279,0.0601,92504.0,92503.0,0.0700972]
[1764882022584,0.56442,92504.0,92503.0,0.0700972]
[1764882022974,0.0601,92504.0,92503.0,0.0700972]
[1764882023574,0.0601,92497.0,92496.0,0.05945212]
[1764882023774,0.0601,92497.0,92496.0,0.03093212]
[1764882024778,0.0601,92497.0,92496.0,0.00016212]
[1764882024974,0.0601,92497.0,92496.0,0.03093212]
[1764882025369,0.0601,92497.0,92496.0,0.00016212]
[1764882025886,0.0709091,92488.0,92484.0,0.0108095]
[1764882026080,0.0709091,92488.0,92466.0,0.01637]
[1764882026482,0.0709091,92488.0,92484.0,0.0108095]
[1764882026876,0.0709091,92488.0,92478.0,0.00016212]
[1764882027079,0.0601,92488.0,92487.0,0.06178871]
[1764882027285,0.33536794,92497.0,92496.0,0.03077]
[1764882027481,0.56458,92497.0,92496.0,0.03077]
[1764882027986,0.0601,92497.0,92496.0,0.05929]
[1764882028178,0.33536794,92506.0,92505.0,0.0700971]
[1764882028379,0.34118,92506.0,92505.0,0.0700971]
[1764882030281,0.0108084,92495.0,92487.0,0.03084869]
[1764882030588,0.0601,92495.0,92494.0,0.0108084]
[1764882032078,0.0601,92495.0,92494.0,0.0128084]
[1764882032589,0.0601,92495.0,92494.0,0.0435784]
[1764882034386,0.0601,92495.0,92494.0,0.0720984]
[1764882034586,0.03798,92496.0,92495.0,0.05688]
[1764882034887,0.03798,92496.0,92495.0,0.05930002]
[1764882035688,0.03798,92496.0,92495.0,0.06030002]
[1764882036389,0.03798,92496.0,92495.0,0.06130002]
[1764882037195,0.01096812,92515.0,92512.0,0.05688]
[1764882037196,0.05811913,92513.0,92512.0,0.05688]
[1764882037489,0.05687212,92515.0,92514.0,0.05930002]
[1764882037887,0.00016212,92515.0,92514.0,0.05930002]
[1764882038192,0.02783212,92515.0,92514.0,0.05930002]
[1764882038486,0.05687212,92515.0,92514.0,0.05930002]
[1764882039084,0.00016212,92515.0,92514.0,0.05930002]
[1764882039394,0.33197794,92540.0,92539.0,0.05688]
[1764882039584,0.05671,92540.0,92539.0,0.05688]
[1764882040492,0.05671,92534.0,92533.0,0.05688]
[1764882041090,0.02767,92534.0,92533.0,0.05688]
[1764882042394,0.08602471,92541.0,92540.0,0.067683]
[1764882042395,0.14273471,92541.0,92540.0,0.067683]
[1764882042695,0.05671,92541.0,92540.0,0.067683]
[1764882045286,0.14123995,92541.0,92540.0,0.067683]
[1764882045488,0.05671,92541.0,92540.0,0.067683]
[1764882045788,0.05671,92541.0,92540.0,0.067823]
[1764882047787,0.0579,92538.0,92537.0,0.0108033]
[1764882047992,0.0579,92538.0,92537.0,0.0678233]
[1764882049590,0.0687033,92538.0,92537.0,0.0108033]
[1764882049792,0.0579,92531.0,92530.0,0.05718212]
[1764882049993,0.0579,92531.0,92530.0,0.00016212]
[1764882050385,0.0579,92531.0,92520.0,0.01705]
[1764882050386,0.0579,92531.0,92504.0,0.0270272]
[1764882050600,0.0579,92513.0,92512.0,0.0678263]
[1764882051401,0.0579,92524.0,92523.0,0.067825]
[1764882051702,0.0579,92531.0,92530.0,0.05702]
[1764882052087,0.0579,92531.0,92530.0,0.02846]
[1764882052698,0.0579,92531.0,92530.0,0.05702]
[1764882057990,0.00016212,92533.0,92529.0,0.0108042]
[1764882058192,0.00016212,92533.0,92532.0,0.05944002]
[1764882060418,0.00016212,92533.0,92532.0,0.06144002]
[1764882060909,0.00016212,92533.0,92532.0,0.05944002]
[1764882061108,0.02282392,92533.0,92532.0,0.06144002]
[1764882065205,0.00016212,92533.0,92532.0,0.06144002]
[1764882067309,0.0108022,92547.0,92532.0,0.06144002]
[1764882067310,0.05811913,92544.0,92543.0,0.05622]
[1764882067613,0.0108011,92557.0,92548.0,0.0670221]
[1764882067614,0.05811913,92557.0,92548.0,0.0670221]
[1764882067816,0.05811913,92558.0,92548.0,0.06944212]
[1764882068005,0.05921,92558.0,92557.0,0.0670211]
[1764882068204,0.05921,92558.0,92557.0,0.06944112]
[1764882069808,0.05811913,92560.0,92559.0,0.0108008]
[1764882070016,0.05811913,92561.0,92560.0,0.05622]
[1764882070215,0.02937,92561.0,92560.0,0.05622]
[1764882070410,0.05921,92561.0,92560.0,0.05622]
[1764882070615,0.07327913,92561.0,92554.0,0.05622]
[1764882070801,0.05921,92549.0,92548.0,0.00016212]
[1764882071004,0.01516,92547.0,92532.0,0.05622]
[1764882071202,0.05921,92533.0,92532.0,0.05622]
[1764882071402,0.05921,92533.0,92519.0,0.01678]
[1764882071403,0.05921,92527.0,92526.0,0.073]
[1764882071719,0.05921,92527.0,92526.0,0.05622]
[1764882073104,0.05921,92527.0,92526.0,0.05722]
[1764882073305,0.05921,92527.0,92526.0,0.03277]
[1764882074110,0.05921,92527.0,92517.0,0.00016212]
[1764882074111,0.05921,92518.0,92517.0,0.01096782]
[1764882074310,0.05921,92518.0,92517.0,0.05638212]
[1764882074500,0.05921,92518.0,92517.0,0.02793212]
[1764882075307,0.05921,92518.0,92517.0,0.00016212]
[1764882075505,0.11742587,92518.0,92517.0,0.00016212]
[1764882075706,0.05921,92518.0,92517.0,0.00116212]
[1764882075905,0.05921,92518.0,92517.0,0.00616212]
[1764882076907,0.05921,92501.0,92500.0,0.02777]
[1764882077112,0.05921,92505.0,92504.0,0.01678]
[1764882077415,0.11740799,92511.0,92510.0,0.05622]
[1764882078708,0.05921,92511.0,92510.0,0.05622]
[1764882079411,0.05819799,92516.0,92514.0,0.0108061]
[1764882079622,0.05819799,92516.0,92512.0,0.01678]
[1764882079623,0.27848383,92520.0,92519.0,0.0670255]
[1764882079818,0.05937212,92520.0,92519.0,0.0670255]
[1764882080112,0.05937212,92520.0,92519.0,0.05622]
[1764882080317,0.11750173,92520.0,92519.0,0.02777]
[1764882080816,0.11750173,92520.0,92519.0,0.05622]
[1764882081718,0.11850173,92520.0,92519.0,0.05622]
[1764882082016,0.12450173,92520.0,92519.0,0.05622]
[1764882082621,0.06637212,92520.0,92519.0,0.05622]
[1764882082820,0.12350173,92520.0,92519.0,0.05622]
[1764882083119,0.12450173,92520.0,92519.0,0.05622]
[1764882083417,0.06637212,92520.0,92519.0,0.05622]
[1764882083714,0.05921,92505.0,92504.0,0.05622]
[1764882084017,0.05921,92505.0,92504.0,0.073]
[1764882084714,0.05921,92505.0,92504.0,0.05622]
[1764882085109,0.05921,92505.0,92480.0,0.01678]
[1764882085110,0.02937,92494.0,92493.0,0.02777]
[1764882085310,0.05921,92494.0,92493.0,0.02777]
[1764882085514,0.010809,92489.0,92487.0,7.869e-05]
[1764882085810,0.05921,92488.0,92487.0,0.05871871]
[1764882086020,0.1440303,92488.0,92487.0,0.05871871]
[1764882086218,0.1440303,92488.0,92487.0,0.05629869]
[1764882086219,0.05921,92488.0,92487.0,0.05629869]
[1764882086410,0.0700191,92488.0,92487.0,0.05629869]
[1764882086611,0.0700191,92488.0,92487.0,0.02784869]
[1764882086812,0.0700191,92488.0,92487.0,7.869e-05]
[1764882087011,0.0700202,92479.0,92478.0,0.00010409]
[1764882087510,0.0700202,92479.0,92478.0,0.05632409]
[1764882087713,0.08820965,92488.0,92485.0,0.0108094]
[1764882087924,0.05921,92482.0,92481.0,0.02777]
[1764882088224,7.97e-05,92482.0,92481.0,0.05622]
[1764882088615,0.0294497,92482.0,92481.0,0.05622]
[1764882089015,0.0592897,92482.0,92481.0,0.05622]
[1764882089217,0.0642897,92482.0,92481.0,0.05622]
[1764882089608,0.0652897,92482.0,92481.0,0.05622]
[1764882090423,0.0602897,92482.0,92481.0,0.05622]
[1764882090625,0.0642897,92482.0,92481.0,0.05622]
[1764882091127,0.05921,92480.0,92479.0,0.0108102]
[1764882091324,0.05921,92480.0,92479.0,0.0385802]
[1764882092725,0.06021,92480.0,92479.0,0.0670302]
[1764882092924,0.06621,92480.0,92479.0,0.0670302]
[1764882093315,0.06621,92480.0,92479.0,0.05622]
[1764882093519,0.06021,92480.0,92479.0,0.05622]
[1764882093720,0.06621,92480.0,92479.0,0.02777]
[1764882094713,0.05701,92479.0,92478.0,0.00010409]
[1764882095013,0.05701,92479.0,92478.0,0.03106411]
[1764882095218,0.05701,92479.0,92478.0,0.05962411]
[1764882095715,0.06301,92479.0,92478.0,0.05962411]
[1764882095916,0.06301,92479.0,92478.0,0.05720409]
[1764882096521,0.06301,92479.0,92478.0,0.00010409]
[1764882096724,0.0630897,92479.0,92478.0,0.00010409]
[1764882097116,0.0640897,92479.0,92478.0,0.00010409]
[1764882098124,0.0580897,92479.0,92478.0,0.00010409]
[1764882098428,0.0630897,92479.0,92478.0,0.00010409]
[1764882099619,0.0630897,92479.0,92457.0,0.07388]
[1764882099620,0.02932,92458.0,92457.0,0.07388]
[1764882099821,0.0570897,92458.0,92457.0,0.07388]
[1764882100626,0.0570897,92458.0,92457.0,0.07488]
[1764882102230,7.97e-05,92458.0,92457.0,0.07488]
[1764882103227,0.0001622,92467.0,92466.0,0.0879417]
[1764882103427,0.0001622,92467.0,92466.0,0.09036172]
[1764882103930,0.0546922,92467.0,92466.0,0.09036172]
[1764882104133,0.0001622,92467.0,92466.0,0.09036172]
[1764882104320,0.0275022,92467.0,92466.0,0.09036172]
[1764882104524,0.0001622,92467.0,92466.0,0.09036172]
[1764882104722,0.0566922,92467.0,92466.0,0.09036172]
[1764882105524,0.0566922,92467.0,92466.0,0.0879417]
[1764882105933,0.0295022,92467.0,92466.0,0.0879417]
[1764882106135,0.0566922,92467.0,92466.0,0.0879417]
[1764882108727,0.0021622,92467.0,92466.0,0.0879417]
[1764882109330,0.0566922,92467.0,92466.0,0.07713]
[1764882109530,0.0295022,92467.0,92466.0,0.07713]
[1764882110738,0.0021622,92467.0,92466.0,0.07713]
[1764882111325,0.0295022,92467.0,92466.0,0.07713]
[1764882111725,0.0021622,92467.0,92466.0,0.07713]
[1764882120651,0.0001622,92467.0,92466.0,0.07713]
[1764882120844,0.0021622,92467.0,92466.0,0.07713]
[1764882123249,0.0021622,92467.0,92466.0,0.07813]
[1764882123452,0.0001622,92467.0,92466.0,0.07813]
[1764882123647,0.0021622,92467.0,92466.0,0.07813]
[1764882124048,0.0001622,92467.0,92466.0,0.07813]
[1764882124350,0.0021622,92467.0,92466.0,0.07813]
[1764882124540,0.0021622,92467.0,92466.0,0.07713]
[1764882125740,0.0577622,92467.0,92466.0,0.07713]
[1764882126245,0.0567622,92467.0,92466.0,0.07713]
[1764882126742,0.0557622,92467.0,92466.0,0.07713]
[1764882127051,0.0557622,92467.0,92457.0,0.0400427]
[1764882127052,0.0556,92458.0,92457.0,0.0400427]
[1764882127238,0.01774,92456.0,92454.0,0.02907]
[1764882127445,0.066413,92455.0,92454.0,0.0583]
[1764882127639,0.14171339,92455.0,92454.0,0.0583]
[1764882127848,0.0556,92455.0,92454.0,0.0583]
[1764882128043,0.14397953,92455.0,92454.0,0.0583]
[1764882128248,0.0556,92455.0,92454.0,0.0583]
[1764882128843,0.0556,92455.0,92454.0,0.0593]
[1764882129654,0.0556,92455.0,92454.0,0.03007]
[1764882129843,0.11371703,92455.0,92454.0,0.03007]
[1764882130243,0.0556,92455.0,92454.0,0.03007]
[1764882130748,0.0556,92455.0,92454.0,0.0593]
[1764882131858,0.14086586,92455.0,92454.0,0.0593]
[1764882132252,0.11341586,92455.0,92454.0,0.0593]
[1764882132450,0.0556,92455.0,92454.0,0.002]
[1764882132648,0.0556,92455.0,92454.0,0.0603]
[1764882134561,0.0556,92455.0,92454.0,0.03107]
[1764882135058,0.0556,92455.0,92454.0,0.0603]
[1764882135559,0.0556,92455.0,92454.0,0.002]
[1764882135759,0.0556,92455.0,92454.0,0.0603]
[1764882136358,0.03405,92456.0,92455.0,0.069113]
[1764882136564,0.03405,92456.0,92455.0,0.07153302]
[1764882137257,0.10739,92456.0,92455.0,0.06072002]
[1764882137455,0.10739,92456.0,92455.0,0.07253302]
[1764882138351,0.10739,92456.0,92455.0,0.0593]
[1764882138562,0.0556,92449.0,92448.0,0.0108137]
[1764882138752,0.0556,92449.0,92448.0,0.0691137]
[1764882139660,0.0556,92447.0,92446.0,0.00027043]
[1764882140060,0.0285538,92448.0,92428.0,0.02907]
[1764882140061,0.02815,92429.0,92428.0,0.02907]
[1764882140360,0.0556,92429.0,92428.0,0.0583]
[1764882140864,0.40684852,92438.0,92437.0,0.0691151]
[1764882141064,0.0557622,92438.0,92437.0,0.0691151]
[1764882141758,0.0001622,92438.0,92437.0,0.0691151]
[1764882142851,0.0001622,92438.0,92437.0,0.0701151]
[1764882143865,0.0001622,92438.0,92437.0,0.0711151]
[1764882144469,0.03405,92456.0,92437.0,0.0711151]
[1764882144470,0.17554316,92450.0,92449.0,0.0691137]
[1764882144671,0.03405,92456.0,92455.0,0.069113]
[1764882144869,0.0622,92456.0,92455.0,0.07153302]
[1764882146058,0.03705,92456.0,92455.0,0.07153302]
[1764882147060,0.03405,92456.0,92455.0,0.07153302]
[1764882147265,0.03705,92456.0,92455.0,0.07153302]
[1764882148767,0.03405,92456.0,92455.0,0.07153302]
[1764882148966,0.03505,92456.0,92455.0,0.07153302]
[1764882149160,0.03505,92456.0,92455.0,0.07253302]
[1764882149560,0.03405,92456.0,92455.0,0.07253302]
[1764882154867,0.03405,92456.0,92455.0,0.07153302]
[1764882155073,0.03405,92456.0,92455.0,0.07253302]
[1764882155657,0.03405,92456.0,92455.0,0.07153302]
[1764882155961,0.03405,92456.0,92455.0,0.07253302]
[1764882157675,0.03405,92456.0,92455.0,0.07153302]
[1764882157868,0.03405,92456.0,92455.0,0.07253302]
[1764882159479,0.03405,92456.0,92455.0,0.07153302]
[1764882159777,0.03405,92456.0,92455.0,0.07253302]
[1764882160468,0.09162,92456.0,92455.0,0.07253302]
[1764882161475,0.09162,92456.0,92455.0,0.011813]
[1764882161668,0.05757,92447.0,92446.0,0.02862229]
[1764882161868,0.05757,92447.0,92446.0,0.00016229]
[1764882162680,0.05757,92447.0,92446.0,0.00216229]
[1764882163064,0.05757,92447.0,92446.0,0.00316229]
[1764882164274,0.05757,92447.0,92446.0,0.00116229]
[1764882164477,0.05757,92447.0,92423.0,0.05982029]
[1764882164478,0.02753,92436.0,92435.0,0.0108152]
[1764882164676,0.05518,92436.0,92435.0,0.0108152]
[1764882165076,0.05518,92436.0,92423.0,0.0108166]
[1764882165077,0.05518,92424.0,92423.0,0.0384166]
[1764882165284,0.01644,92432.0,92431.0,0.0662358]
[1764882165480,0.02765,92432.0,92431.0,0.0662358]
[1764882165684,0.07162,92440.0,92439.0,0.0662348]
[1764882167073,0.02765,92440.0,92439.0,0.0662348]
[1764882167684,0.07162,92440.0,92439.0,0.0662348]
[1764882167883,0.05518,92440.0,92439.0,0.0672348]
[1764882168178,0.00016229,92441.0,92440.0,0.07182]
[1764882168374,0.00016229,92441.0,92440.0,0.07424002]
[1764882176489,0.02781229,92441.0,92440.0,0.07424002]
[1764882176680,0.00016229,92441.0,92440.0,0.07424002]
[1764882177586,0.07162,92463.0,92462.0,0.05542]
[1764882177782,0.05518,92463.0,92462.0,0.0662322]
[1764882178376,0.07162,92463.0,92462.0,0.0662322]
[1764882179084,0.07562,92463.0,92462.0,0.0662322]
[1764882179679,0.07662,92463.0,92462.0,0.0662322]
[1764882180385,0.07562,92463.0,92462.0,0.0662322]
[1764882180581,0.05918,92463.0,92462.0,0.0662322]
[1764882180791,0.03065,92463.0,92462.0,0.0662322]
[1764882181887,0.05518,92463.0,92462.0,0.0662322]
[1764882182186,0.07462,92463.0,92462.0,0.0662322]
[1764882183583,0.07162,92463.0,92462.0,0.0662322]
[1764882183781,0.07362,92463.0,92462.0,0.0662322]
[1764882184185,0.07162,92463.0,92462.0,0.0662322]
[1764882184381,0.07562,92463.0,92462.0,0.0662322]
[1764882184776,0.07162,92463.0,92462.0,0.0662322]
[1764882185081,0.07562,92463.0,92462.0,0.0662322]
[1764882186386,0.06018,92463.0,92462.0,0.0662322]
[1764882186974,0.05918,92463.0,92462.0,0.0662322]
[1764882187183,0.05818,92463.0,92462.0,0.0662322]
[1764882187379,0.003,92463.0,92462.0,0.0662322]
[1764882187692,0.03236,92464.0,92463.0,0.05617]
[1764882187893,0.17576729,92472.0,92471.0,0.05617]
[1764882188182,0.17576729,92472.0,92471.0,0.05859002]
[1764882188183,0.00016229,92472.0,92471.0,0.05859002]
[1764882188984,0.00016229,92472.0,92471.0,0.06940112]
[1764882190080,0.02856031,92486.0,92485.0,0.0669795]
[1764882190286,0.00027031,92486.0,92485.0,0.0669795]
[1764882190687,0.00010731,92486.0,92485.0,0.0669795]
[1764882191176,0.00710731,92486.0,92485.0,0.0669795]
[1764882191387,0.1928772,92495.0,92494.0,0.0669784]
[1764882191388,0.0172722,92495.0,92494.0,0.0669784]
[1764882191579,0.0172722,92495.0,92494.0,0.06939842]
[1764882192883,0.0242722,92495.0,92494.0,0.06939842]
[1764882193384,0.40932,92515.0,92514.0,0.0669761]
[1764882193579,0.05752,92515.0,92514.0,0.0669761]
[1764882195291,0.06052,92515.0,92514.0,0.0669761]
[1764882197796,0.06052,92515.0,92514.0,0.0108061]
[1764882198491,0.01626,92512.0,92505.0,0.0001622]
[1764882198693,0.0108064,92511.0,92508.0,0.0108067]
[1764882198892,0.05752,92506.0,92505.0,0.0001622]
[1764882199095,0.05752,92506.0,92505.0,0.05875222]
[1764882200391,0.05752,92506.0,92505.0,0.0001622]
[1764882200590,0.05752,92506.0,92505.0,0.02985222]
[1764882201090,0.05752,92506.0,92505.0,0.0274322]
[1764882201290,0.06052,92506.0,92505.0,0.0563322]
[1764882201791,0.003,92506.0,92505.0,0.0563322]
[1764882203191,0.175605,92515.0,92514.0,0.05617]
[1764882203395,0.4088922,92524.0,92523.0,0.066975]
[1764882203592,0.0576822,92524.0,92523.0,0.06939502]
[1764882205193,0.0616822,92524.0,92523.0,0.06939502]
[1764882206691,0.0041622,92524.0,92523.0,0.06939502]
[1764882207290,0.0324522,92524.0,92523.0,0.06939502]
[1764882207600,0.0324522,92524.0,92523.0,0.04049502]
[1764882207601,0.0616822,92524.0,92523.0,0.04049502]
[1764882207799,0.0616822,92524.0,92523.0,0.01322502]
[1764882207999,0.0616822,92524.0,92523.0,0.010805]
[1764882208201,0.0576822,92524.0,92523.0,0.010805]
[1764882208405,0.0576822,92524.0,92523.0,0.017805]
[1764882208994,0.0576822,92524.0,92523.0,0.013805]
[1764882210001,0.0576822,92524.0,92523.0,0.003]
[1764882210400,0.0684871,92524.0,92523.0,0.003]
[1764882211102,0.0684871,92524.0,92505.0,0.0563322]
[1764882211103,0.068327,92506.0,92505.0,0.0563322]
[1764882211407,0.068327,92506.0,92505.0,0.0001622]
[1764882211800,0.05752,92487.0,92464.0,0.05503845]
[1764882212099,0.05752,92493.0,92492.0,0.05617]
[1764882212505,0.05752,92493.0,92492.0,0.0669786]
[1764882212705,0.05752,92493.0,92492.0,0.0108086]
[1764882213101,0.05752,92493.0,92492.0,0.0669786]
[1764882215004,0.05577,92490.0,92489.0,0.010809]
[1764882215209,0.0831796,92484.0,92483.0,0.0109719]
[1764882215400,0.0831796,92484.0,92483.0,0.0001622]
[1764882217501,0.0841796,92484.0,92483.0,0.0001622]
[1764882221712,0.07337,92484.0,92483.0,0.0001622]
[1764882222705,0.07337,92484.0,92483.0,0.05894222]
[1764882222911,0.05677,92484.0,92483.0,0.05894222]
[1764882224102,0.05577,92484.0,92483.0,0.05894222]
[1764882224509,0.05577,92484.0,92483.0,0.03307222]
[1764882224815,0.05577,92484.0,92483.0,0.00458222]
[1764882225315,0.05577,92484.0,92483.0,0.0021622]
[1764882225518,0.05577,92484.0,92483.0,0.0001622]
[1764882225704,0.05577,92484.0,92483.0,0.0011622]
[1764882226306,0.05577,92484.0,92483.0,0.0571622]
[1764882226809,0.05577,92484.0,92483.0,0.0011622]
[1764882227211,0.05677,92484.0,92483.0,0.0011622]
[1764882227418,0.05677,92484.0,92483.0,0.0571622]
[1764882227713,0.05677,92484.0,92483.0,0.0561622]
[1764882227913,0.05577,92484.0,92483.0,0.0303322]
[1764882230221,0.05577,92484.0,92483.0,0.0303322]
[1764882230418,0.0727,92484.0,92483.0,0.0293322]
[1764882232410,0.0727,92484.0,92483.0,0.0011622]
[1764882232812,0.0727,92484.0,92483.0,0.0293322]
[1764882233511,0.0727,92484.0,92483.0,0.0571622]
[1764882234823,0.0727,92484.0,92483.0,0.0679719]
[1764882234824,0.05577,92484.0,92483.0,0.0679719]
[1764882235216,0.05577,92484.0,92483.0,0.0689719]
[1764882236620,0.05577,92484.0,92483.0,0.0109719]
[1764882236621,0.0835096,92484.0,92483.0,0.0109719]
[1764882236924,0.0835096,92484.0,92466.0,0.06667897]
[1764882236925,0.05667,92467.0,92466.0,0.06667897]
[1764882237119,0.05667,92467.0,92466.0,0.0668117]
[1764882238027,0.05667,92467.0,92457.0,0.0001622]
[1764882238331,0.05667,92458.0,92457.0,0.06939492]
[1764882238522,0.05667,92458.0,92457.0,0.0669749]
[1764882238822,0.05667,92458.0,92457.0,0.0109749]
[1764882240021,0.05667,92458.0,92457.0,0.0001622]
[1764882240318,0.05667,92458.0,92457.0,0.0011622]
[1764882240920,0.05667,92458.0,92434.0,0.03838845]
[1764882240921,0.05667,92447.0,92434.0,0.03838845]
[1764882241123,0.010814,92446.0,92428.0,0.010816]
[1764882241326,0.05667,92429.0,92428.0,0.010816]
[1764882241832,0.05667,92429.0,92428.0,0.066816]
[1764882243237,0.05667,92429.0,92428.0,0.046986]
[1764882243433,0.05667,92429.0,92428.0,0.074816]
[1764882244532,0.05667,92429.0,92428.0,0.046986]
[1764882244834,0.05667,92429.0,92428.0,0.018816]
[1764882245034,0.05667,92429.0,92428.0,0.047906]
[1764882245626,0.05667,92429.0,92428.0,0.018816]
[1764882246128,0.05667,92429.0,92428.0,0.047906]
[1764882246327,0.05667,92429.0,92428.0,0.076456]
[1764882247731,0.0570022,92438.0,92437.0,0.0684551]
[1764882247936,0.5608822,92438.0,92437.0,0.0684551]
[1764882248739,0.0570022,92438.0,92437.0,0.0694551]
[1764882249734,0.0570022,92438.0,92437.0,0.0744551]
[1764882253945,0.0570022,92438.0,92437.0,0.0459051]
[1764882254139,0.0570022,92438.0,92437.0,0.0744551]
[1764882257249,0.0001622,92438.0,92437.0,0.0744551]
[1764882260443,0.33295625,92460.0,92459.0,0.0684525]
[1764882260644,0.05684,92460.0,92459.0,0.0684525]
[1764882261349,0.05684,92470.0,92469.0,0.0684513]
[1764882261940,0.02717,92470.0,92469.0,0.0684513]
[1764882262141,0.05684,92470.0,92469.0,0.0684513]
[1764882262937,0.05884,92470.0,92469.0,0.0684513]
[1764882263144,0.05984,92470.0,92469.0,0.0684513]
[1764882263643,0.05784,92470.0,92469.0,0.0694513]
[1764882263953,0.05784,92470.0,92469.0,0.0118113]
[1764882263954,0.05684,92470.0,92469.0,0.0118113]
[1764882264349,0.05684,92470.0,92469.0,0.0694513]
[1764882265047,0.05684,92470.0,92469.0,0.0118113]
[1764882265351,0.05684,92470.0,92469.0,0.0399013]
[1764882265555,0.05684,92470.0,92469.0,0.0419013]
[1764882266052,0.05684,92470.0,92469.0,0.0694513]
[1764882266644,0.05684,92470.0,92469.0,0.0118113]
[1764882267150,0.05684,92470.0,92469.0,0.0409013]
[1764882267351,0.05684,92470.0,92469.0,0.0694513]
[1764882268551,0.0747,92470.0,92469.0,0.0694513]
[1764882269350,0.05684,92470.0,92469.0,0.0694513]
[1764882270453,0.0747,92470.0,92469.0,0.0694513]
[1764882271142,0.0747,92470.0,92469.0,0.0409013]
[1764882271347,0.0747,92470.0,92469.0,0.0694513]
[1764882272448,0.0747,92470.0,92469.0,0.001]
[1764882272653,0.010811,92472.0,92469.0,0.001]
[1764882272842,0.0108122,92462.0,92461.0,0.0108122]
[1764882274754,0.0108119,92465.0,92464.0,0.0108117]
[1764882275648,0.0108115,92468.0,92467.0,0.0108114]
[1764882276957,0.0108115,92468.0,92467.0,0.0118114]
[1764882277754,0.0653815,92468.0,92467.0,0.0118114]
[1764882278146,0.0653815,92468.0,92467.0,0.0696014]
[1764882278147,0.05457,92468.0,92467.0,0.0696014]
[1764882278652,0.23122974,92477.0,92476.0,0.05779]
[1764882278846,0.05567,92477.0,92476.0,0.06021002]
[1764882279043,0.07273,92477.0,92476.0,0.06021002]
[1764882279955,0.07473,92477.0,92476.0,0.06021002]
[1764882280861,0.05767,92477.0,92476.0,0.06021002]
[1764882281862,0.05567,92477.0,92476.0,0.06021002]
[1764882282761,0.07273,92477.0,92476.0,0.06021002]
[1764882283354,0.05567,92477.0,92476.0,0.06021002]
[1764882283960,0.0286,92477.0,92476.0,0.06021002]
[1764882284358,0.0001622,92479.0,92478.0,0.05779]